bitfinex/quotes_BTCUSD_20250730
["timestamp","ask_amount","ask_price","bid_price","bid_amount"]
[1753873180408,0.68332585,118150.0,118140.0,0.19589851]
[1753873180853,0.68332327,118150.0,118140.0,0.19589851]
[1753873181291,0.68332327,118150.0,118140.0,0.19581851]
[1753873181504,0.68332327,118150.0,118140.0,0.05900851]
[1753873181913,0.68331781,118150.0,118140.0,0.05900851]
[1753873182143,0.68331781,118150.0,118140.0,0.19316851]
[1753873182805,0.68331781,118150.0,118140.0,0.19573851]
[1753873183481,0.69178141,118150.0,118140.0,0.50529918]
[1753873183644,0.68314443,118150.0,118140.0,0.19573851]
[1753873184032,0.68314443,118150.0,118140.0,0.50529918]
[1753873185055,0.68314443,118150.0,118140.0,0.19573851]
[1753873185346,0.68314443,118150.0,118140.0,0.50529918]
[1753873186150,1.38505888,118150.0,118140.0,0.13420851]
[1753873186390,1.07549821,118150.0,118140.0,0.13628851]
[1753873186602,1.04584821,118150.0,118140.0,0.17676851]
[1753873187454,1.05341629,118150.0,118140.0,0.17676851]
[1753873187966,1.07999629,118150.0,118140.0,0.15178851]
[1753873188248,1.08306629,118150.0,118140.0,0.15178851]
[1753873188464,1.1056721,118150.0,118140.0,0.15178851]
[1753873188713,0.68030824,118150.0,118140.0,0.50339918]
[1753873188933,0.65770243,118150.0,118140.0,0.50339918]
[1753873189164,0.48842609,118150.0,118140.0,0.5208482]
[1753873189388,0.4968889,118150.0,118140.0,0.52931266]
[1753873189573,0.4968889,118150.0,118140.0,0.5208482]
[1753873189803,0.48842537,118150.0,118140.0,0.70706757]
[1753873190030,0.47996199,118150.0,118140.0,0.7155316]
[1753873190257,0.38700864,118150.0,118140.0,0.7155316]
[1753873190471,0.36888846,118150.0,118140.0,0.8000089]
[1753873193574,0.36688846,118150.0,118140.0,0.8000089]
[1753873194028,0.36688846,118150.0,118140.0,0.8020089]
[1753873194029,0.36788846,118150.0,118140.0,0.8020089]
[1753873194252,0.36688846,118150.0,118140.0,0.8000089]
[1753873195371,0.35901675,118150.0,118140.0,0.8000089]
[1753873195594,0.35901675,118150.0,118140.0,0.8020089]
[1753873195816,0.36101675,118150.0,118140.0,0.8030089]
[1753873196056,0.36101675,118150.0,118140.0,1.45056957]
[1753873196513,0.35512434,118150.0,118140.0,1.45356957]
[1753873197407,0.35512434,118150.0,118140.0,0.83444823]
[1753873197410,0.35512434,118150.0,118140.0,1.45356957]
[1753873197663,0.35512434,118150.0,118140.0,1.47897519]
[1753873198550,0.32292434,118150.0,118140.0,1.61897519]
[1753873198693,0.32292434,118150.0,118140.0,1.66897519]
[1753873199490,0.32092434,118150.0,118140.0,1.66497519]
[1753873199907,1e-08,118150.0,118140.0,1.72097519]
[1753873200334,1e-08,118150.0,118140.0,1.58097519]
[1753873200753,1e-08,118150.0,118140.0,1.71097519]
[1753873202459,0.01376331,118190.0,118180.0,0.21206652]
[1753873202672,0.01376331,118190.0,118180.0,0.99641353]
[1753873202891,0.01376331,118190.0,118180.0,1.02069353]
[1753873203118,0.00589856,118190.0,118180.0,1.02069353]
[1753873203337,0.0279,118200.0,118190.0,0.19570104]
[1753873203557,0.04369072,118200.0,118190.0,0.60220901]
[1753873203787,0.04369072,118200.0,118190.0,0.61475495]
[1753873204671,0.04369072,118200.0,118190.0,0.60435495]
[1753873204941,0.24327514,118200.0,118190.0,0.14702594]
[1753873205145,0.27467557,118200.0,118190.0,0.46148969]
[1753873205362,0.27467557,118200.0,118190.0,0.46152969]
[1753873205586,0.10547084,118200.0,118190.0,0.46999064]
[1753873205805,0.25887557,118200.0,118190.0,0.46999064]
[1753873206026,0.25887557,118200.0,118190.0,0.46152969]
[1753873206240,0.25887557,118200.0,118190.0,0.15196902]
[1753873206491,0.25775561,118200.0,118190.0,0.46148969]
[1753873207525,0.25775561,118200.0,118190.0,0.15192902]
[1753873207744,0.25775561,118200.0,118190.0,0.46148969]
[1753873207971,0.25774793,118200.0,118190.0,0.46148969]
[1753873208183,0.24989234,118200.0,118190.0,0.46148969]
[1753873208867,0.24989234,118200.0,118190.0,0.15192902]
[1753873209095,0.24989234,118200.0,118190.0,0.46148969]
[1753873209320,0.24989234,118200.0,118190.0,0.46995064]
[1753873209542,0.24989234,118200.0,118190.0,0.46148969]
[1753873210173,0.08914756,118200.0,118190.0,0.63070874]
[1753873210382,0.24255229,118200.0,118190.0,0.63070874]
[1753873210603,0.23665484,118200.0,118190.0,0.15192902]
[1753873211238,0.06745011,118200.0,118190.0,0.63054874]
[1753873211448,0.2451145,118200.0,118190.0,0.63900962]
[1753873211700,0.2451145,118200.0,118190.0,0.46132969]
[1753873211890,0.2451145,118200.0,118190.0,0.46979064]
[1753873212091,0.07590977,118200.0,118190.0,0.63900969]
[1753873212242,0.07590977,118200.0,118190.0,0.64747049]
[1753873212469,0.59199473,118200.0,118190.0,0.46132969]
[1753873212731,0.59199473,118200.0,118190.0,0.63900954]
[1753873212969,0.59199473,118200.0,118190.0,0.63900962]
[1753873213374,0.42278993,118200.0,118190.0,0.64747042]
[1753873213847,0.34342,118200.0,118190.0,0.73040226]
[1753873213997,0.34342,118200.0,118190.0,0.79927956]
[1753873214250,0.34342,118200.0,118190.0,0.81744956]
[1753873214870,0.34342,118200.0,118190.0,0.81487956]
[1753873217141,0.34342,118200.0,118190.0,0.81744956]
[1753873217785,0.34342,118200.0,118190.0,0.81487956]
[1753873217998,0.34342,118200.0,118190.0,1.12701023]
[1753873218198,0.34342,118200.0,118190.0,0.99369023]
[1753873218410,0.34342,118200.0,118190.0,1.46681023]
[1753873219514,0.33842,118200.0,118190.0,1.46881023]
[1753873219744,0.33942,118200.0,118190.0,1.47181023]
[1753873219947,0.33942,118200.0,118190.0,1.30259118]
[1753873221208,0.33942,118200.0,118190.0,1.26028766]
[1753873221661,0.33842,118200.0,118190.0,1.25428766]
[1753873222112,0.33842,118200.0,118190.0,1.25728766]
[1753873222342,0.33942,118200.0,118190.0,1.25928766]
[1753873222598,0.33942,118200.0,118190.0,1.25628766]
[1753873222808,0.33842,118200.0,118190.0,1.25428766]
[1753873223259,0.33942,118200.0,118190.0,1.26228766]
[1753873223484,0.33942,118200.0,118190.0,1.26208766]
[1753873224689,0.33942,118200.0,118190.0,1.12916766]
[1753873224887,0.33942,118200.0,118190.0,0.94987699]
[1753873225105,0.36437,118200.0,118190.0,0.81703699]
[1753873225312,0.36437,118200.0,118190.0,0.64031632]
[1753873225469,0.36437,118200.0,118190.0,0.94987699]
[1753873226262,0.36437,118200.0,118190.0,0.62471632]
[1753873226497,0.36437,118200.0,118190.0,0.93427699]
[1753873226720,0.36437,118200.0,118190.0,0.93431699]
[1753873226952,0.36437,118200.0,118190.0,0.91003699]
[1753873226953,0.37440625,118200.0,118190.0,0.91003699]
[1753873227167,0.36961,118200.0,118190.0,0.91003699]
[1753873227584,0.36961,118200.0,118190.0,0.93264699]
[1753873228259,0.36437,118200.0,118190.0,0.93264699]
[1753873228492,0.33942,118200.0,118190.0,0.93264699]
[1753873228941,0.34730027,118200.0,118190.0,0.93264699]
[1753873229186,0.33942,118200.0,118190.0,0.93264699]
[1753873229406,0.39608365,118200.0,118190.0,0.91003699]
[1753873229631,0.39916365,118200.0,118190.0,0.91003699]
[1753873229874,0.39916365,118200.0,118190.0,0.76155699]
[1753873230098,0.43206099,118200.0,118190.0,0.40203797]
[1753873230337,0.43206099,118200.0,118190.0,0.53495797]
[1753873230569,0.43206099,118200.0,118190.0,0.41948699]
[1753873230810,0.43206099,118200.0,118190.0,0.55240699]
[1753873232395,0.43206099,118200.0,118190.0,0.02544902]
[1753873232653,0.43206099,118200.0,118190.0,0.46788969]
[1753873232933,0.42615099,118200.0,118190.0,0.46788969]
[1753873233152,0.43206339,118200.0,118190.0,0.14084]
[1753873233382,0.43206339,118200.0,118190.0,0.15828902]
[1753873233640,0.43206339,118200.0,118190.0,0.15824902]
[1753873233915,0.49342342,118200.0,118190.0,0.008]
[1753873234170,1.22746139,118200.0,118190.0,0.008]
[1753873234415,0.91790072,118200.0,118190.0,0.14132]
[1753873234914,0.91690072,118200.0,118190.0,0.13332]
[1753873235160,0.91690072,118200.0,118190.0,0.13632]
[1753873235398,0.97077839,118200.0,118190.0,0.13932]
[1753873235619,0.94717258,118200.0,118190.0,0.13632]
[1753873235836,0.94717495,118200.0,118190.0,0.13332]
[1753873236064,0.97560595,118200.0,118190.0,0.13432]
[1753873236953,0.97560595,118200.0,118190.0,0.13452]
[1753873237388,0.99828423,118200.0,118190.0,0.13452]
[1753873238281,0.99827993,118200.0,118190.0,0.13452]
[1753873238952,0.99827539,118200.0,118190.0,0.13452]
[1753873239410,0.96800353,118200.0,118190.0,0.13452]
[1753873241767,0.96800326,118200.0,118190.0,0.13452]
[1753873242180,0.94532928,118200.0,118190.0,0.13452]
[1753873243616,0.90212294,118200.0,118190.0,0.1342]
[1753873246526,1.21168361,118200.0,118190.0,0.1342]
[1753873247391,1.19352992,118200.0,118190.0,0.1342]
[1753873247602,0.88396925,118200.0,118190.0,0.1342]
[1753873247817,0.90208693,118200.0,118190.0,0.1342]
[1753873248246,0.88396925,118200.0,118190.0,0.1342]
[1753873248678,1.19352992,118200.0,118190.0,0.001]
[1753873248896,1.19352992,118200.0,118190.0,0.13412]
[1753873249106,1.21164562,118200.0,118190.0,0.13412]
[1753873249545,1.21164562,118200.0,118190.0,0.001]
[1753873249771,1.21164562,118200.0,118190.0,0.13416]
[1753873250006,1.29612292,118200.0,118190.0,0.13416]
[1753873250226,1.27800722,118200.0,118190.0,0.001]
[1753873250901,1.29611803,118200.0,118190.0,0.001]
[1753873252455,1.7387987,118200.0,118190.0,0.001]
[1753873252886,1.42923803,118200.0,118190.0,0.001]
[1753873253326,5.53890603,118200.0,118190.0,0.001]
[1753873253767,5.53889967,118200.0,118190.0,0.001]
[1753873255107,5.84846034,118200.0,118190.0,0.001]
[1753873256404,0.3706,118180.0,118170.0,0.13332]
[1753873256633,1.16378102,118180.0,118170.0,0.13332]
[1753873256872,1.19125102,118180.0,118170.0,0.13332]
[1753873257091,1.21668802,118180.0,118170.0,0.13332]
[1753873259212,1.21768802,118180.0,118170.0,0.13532]
[1753873259434,1.22555297,118180.0,118170.0,0.13532]
[1753873259669,1.22555475,118180.0,118170.0,0.13532]
[1753873260097,1.22555125,118180.0,118170.0,0.13532]
[1753873260476,0.91097058,118180.0,118170.0,0.002]
[1753873261532,0.86759831,118180.0,118170.0,0.33539067]
[1753873261746,0.86759831,118180.0,118170.0,0.46851067]
[1753873262177,0.87391058,118180.0,118170.0,0.46851067]
[1753873263133,0.87391058,118180.0,118170.0,0.15895]
[1753873263355,0.89205518,118180.0,118170.0,0.46851067]
[1753873265173,0.75252788,118180.0,118170.0,0.46851067]
[1753873265424,0.8368765,118180.0,118170.0,0.46851067]
[1753873265636,0.75252788,118180.0,118170.0,0.47316067]
[1753873267354,0.75251134,118180.0,118170.0,0.1636]
[1753873267575,0.75251134,118180.0,118170.0,0.48906067]
[1753873268026,0.41251134,118180.0,118170.0,0.50566067]
[1753873268241,0.39436674,118180.0,118170.0,0.1961]
[1753873268446,0.39436674,118180.0,118170.0,0.52310969]
[1753873269996,0.39336674,118180.0,118170.0,0.52110969]
[1753873270451,0.39536674,118180.0,118170.0,0.52210969]
[1753873270658,0.39336674,118180.0,118170.0,0.52110969]
[1753873271093,0.39436674,118180.0,118170.0,0.52310969]
[1753873271296,0.39437407,118180.0,118170.0,0.52310969]
[1753873271768,0.39437407,118180.0,118170.0,0.21354902]
[1753873271990,0.39437407,118180.0,118170.0,0.52310969]
[1753873272204,0.37863111,118180.0,118170.0,0.52310969]
[1753873272415,0.3943875,118180.0,118170.0,0.52310969]
[1753873274108,0.3943875,118180.0,118170.0,0.21354902]
[1753873274314,0.3943875,118180.0,118170.0,0.52310969]
[1753873274524,0.3943875,118180.0,118170.0,0.21554902]
[1753873274730,0.3943875,118180.0,118170.0,0.52510969]
[1753873275589,0.3689505,118180.0,118170.0,0.52510969]
[1753873276680,0.3689505,118180.0,118170.0,0.60958699]
[1753873276896,0.35319411,118180.0,118170.0,0.60958699]
[1753873277592,0.35321275,118180.0,118170.0,0.60958699]
[1753873278029,0.34532738,118180.0,118170.0,0.60958699]
[1753873280388,0.33942,118180.0,118170.0,0.60958699]
[1753873285853,0.33942,118180.0,118170.0,0.617901]
[1753873291426,0.33942,118180.0,118170.0,0.5334237]
[1753873291631,0.33942,118180.0,118170.0,0.5308537]
[1753873291847,0.33942,118180.0,118170.0,0.5293737]
[1753873292219,0.33942,118180.0,118170.0,0.613851]
[1753873294350,0.33942,118180.0,118170.0,0.30429033]
[1753873294548,0.33942,118180.0,118170.0,0.60553699]
[1753873297826,0.33842,118180.0,118170.0,0.60353699]
[1753873298239,0.33942,118180.0,118170.0,0.60553699]
[1753873299220,0.33942,118180.0,118170.0,0.60353699]
[1753873299602,0.33842,118180.0,118170.0,0.60153699]
[1753873300021,0.33942,118180.0,118170.0,0.60353699]
[1753873300239,0.36233,118180.0,118170.0,0.60353699]
[1753873300928,0.3673,118180.0,118170.0,0.41348699]
[1753873301141,0.3984,118180.0,118170.0,0.54588699]
[1753873301784,0.3984,118180.0,118170.0,0.54688699]
[1753873302441,0.3984,118180.0,118170.0,0.54588699]
[1753873303045,0.3984,118180.0,118170.0,0.54788699]
[1753873305106,0.3984,118180.0,118170.0,0.54588699]
[1753873305524,0.3984,118180.0,118170.0,0.54888699]
[1753873306146,0.3984,118180.0,118170.0,0.54588699]
[1753873306364,0.3984,118180.0,118170.0,0.54888699]
[1753873306983,0.3832,118180.0,118170.0,0.54888699]
[1753873307835,0.3822,118180.0,118170.0,0.54688699]
[1753873308510,0.3832,118180.0,118170.0,0.54888699]
[1753873308736,0.3832,118180.0,118170.0,0.23932632]
[1753873308888,0.3822,118180.0,118170.0,0.54688699]
[1753873309879,0.3832,118180.0,118170.0,0.54888699]
[1753873312087,0.3832,118180.0,118170.0,0.23932632]
[1753873312503,0.3832,118180.0,118170.0,0.54888699]
[1753873315118,0.3993,118180.0,118170.0,0.54888699]
[1753873315566,0.3993,118180.0,118170.0,0.56466699]
[1753873316733,0.3983,118180.0,118170.0,0.25310632]
[1753873316954,0.3983,118180.0,118170.0,0.58526076]
[1753873317181,0.3993,118180.0,118170.0,0.72118076]
[1753873317407,0.3993,118180.0,118170.0,0.71818076]
[1753873317631,0.3993,118180.0,118170.0,0.58626076]
[1753873317864,0.3993,118180.0,118170.0,0.72054076]
[1753873318345,0.3993,118180.0,118170.0,0.72050076]
[1753873319385,0.3993,118180.0,118170.0,0.71850076]
[1753873319815,0.3993,118180.0,118170.0,0.71950076]
[1753873321671,0.3832,118180.0,118170.0,0.71950076]
[1753873321891,0.3832,118180.0,118170.0,0.72155076]
[1753873322316,0.3832,118180.0,118170.0,0.25699632]
[1753873322522,0.3832,118180.0,118170.0,0.72155076]
[1753873323160,0.3832,118180.0,118170.0,0.72055076]
[1753873323613,0.3822,118180.0,118170.0,0.71855076]
[1753873324028,0.3832,118180.0,118170.0,0.71955076]
[1753873324268,0.3822,118180.0,118170.0,0.71655076]
[1753873324478,0.33842,118180.0,118170.0,1.00487798]
[1753873324739,0.33942,118180.0,118170.0,1.01287798]
[1753873324963,0.33942,118180.0,118170.0,1.01544798]
[1753873325399,0.33942,118180.0,118170.0,0.99677798]
[1753873326044,0.33942,118180.0,118170.0,0.98117798]
[1753873326490,0.33942,118180.0,118170.0,0.74890076]
[1753873330185,0.36408,118180.0,118170.0,0.74890076]
[1753873331808,0.36408,118180.0,118170.0,0.98117798]
[1753873332009,0.33942,118180.0,118170.0,0.98117798]
[1753873332421,0.33942,118180.0,118170.0,0.74890076]
[1753873333739,0.33942,118180.0,118170.0,0.98117798]
[1753873335651,0.33942,118180.0,118170.0,0.74890076]
[1753873338270,0.36408,118180.0,118170.0,0.74890076]
[1753873339404,0.36408,118180.0,118170.0,0.28434632]
[1753873339625,0.36408,118180.0,118170.0,0.74890076]
[1753873340240,0.36941,118180.0,118170.0,0.72455076]
[1753873340448,0.38491,118180.0,118170.0,0.72455076]
[1753873341525,0.36941,118180.0,118170.0,0.72455076]
[1753873341735,0.36941,118180.0,118170.0,0.74941076]
[1753873341941,0.36727,118180.0,118170.0,0.74941076]
[1753873342149,0.33942,118180.0,118170.0,0.74941076]
[1753873342358,0.33942,118180.0,118170.0,0.98168798]
[1753873342568,0.33942,118180.0,118170.0,0.74941076]
[1753873343638,0.33942,118180.0,118170.0,0.98168798]
[1753873345618,0.33942,118180.0,118170.0,0.74941076]
[1753873347078,0.36195,118180.0,118170.0,0.74941076]
[1753873347285,0.38094,118180.0,118170.0,0.72455076]
[1753873348581,0.36195,118180.0,118170.0,0.74941076]
[1753873349269,0.33942,118180.0,118170.0,0.74941076]
[1753873350956,0.33942,118180.0,118170.0,0.98168798]
[1753873351587,0.33942,118180.0,118170.0,1.01475798]
[1753873351798,0.33942,118180.0,118170.0,1.35475798]
[1753873353035,0.33942,118180.0,118170.0,1.53475798]
[1753873353654,0.33942,118180.0,118170.0,1.58475798]
[1753873353875,0.33842,118180.0,118170.0,1.57675798]
[1753873354088,0.33842,118180.0,118170.0,1.39983798]
[1753873354297,0.33942,118180.0,118170.0,1.40283798]
[1753873356267,0.33942,118180.0,118170.0,1.35283798]
[1753873356497,0.33942,118180.0,118170.0,1.27151798]
[1753873356716,0.36728,118180.0,118170.0,0.58926076]
[1753873356965,0.39768,118180.0,118170.0,0.70313174]
[1753873357398,0.39768,118180.0,118170.0,0.72058076]
[1753873357606,0.39668,118180.0,118170.0,0.71758076]
[1753873357829,0.39668,118180.0,118170.0,0.71358076]
[1753873358053,0.39768,118180.0,118170.0,0.71242076]
[1753873358264,0.39768,118180.0,118170.0,0.71442076]
[1753873358698,0.38248,118180.0,118170.0,0.71242076]
[1753873358908,0.38248,118180.0,118170.0,0.55751533]
[1753873359518,0.38148,118180.0,118170.0,0.55751533]
[1753873359731,0.38148,118180.0,118170.0,0.55951533]
[1753873360154,0.38148,118180.0,118170.0,0.56251533]
[1753873360990,0.38148,118180.0,118170.0,0.55951533]
[1753873361196,0.38148,118180.0,118170.0,0.55751533]
[1753873361409,0.38148,118180.0,118170.0,0.56051533]
[1753873361839,0.38148,118180.0,118170.0,0.55751533]
[1753873364239,0.36628,118180.0,118170.0,0.56352533]
[1753873364463,0.36628,118180.0,118170.0,0.58838533]
[1753873364697,0.33842,118180.0,118170.0,0.58838533]
[1753873364923,0.33842,118180.0,118170.0,0.62315533]
[1753873365202,0.33842,118180.0,118170.0,0.93280434]
[1753873365422,0.33842,118180.0,118170.0,1.51280434]
[1753873365643,0.33842,118180.0,118170.0,1.46280434]
[1753873365851,0.33842,118180.0,118170.0,1.32280434]
[1753873367433,0.33842,118180.0,118170.0,1.41280434]
[1753873368272,0.33842,118180.0,118170.0,1.32280434]
[1753873369714,0.33842,118180.0,118170.0,1.74490434]
[1753873370073,0.33842,118180.0,118170.0,1.69490434]
[1753873370302,0.33842,118180.0,118170.0,1.74490434]
[1753873373156,0.33842,118180.0,118170.0,1.75490434]
[1753873373941,0.33309138,118180.0,118170.0,1.75458434]
[1753873375327,0.33309138,118180.0,118170.0,1.77800234]
[1753873375557,0.33309138,118180.0,118170.0,1.78100234]
[1753873376872,0.33309138,118180.0,118170.0,1.77900234]
[1753873377112,0.04314,118220.0,118200.0,0.03304902]
[1753873377333,0.02808827,118220.0,118210.0,0.52716119]
[1753873377541,0.03010827,118220.0,118210.0,0.52504631]
[1753873377973,0.04580827,118220.0,118210.0,0.52504631]
[1753873378176,0.04580827,118220.0,118210.0,0.53366563]
[1753873378363,0.04880827,118220.0,118210.0,0.53366563]
[1753873378663,0.04880827,118220.0,118210.0,0.55111465]
[1753873378816,0.04880827,118220.0,118210.0,0.89111465]
[1753873379028,0.03310827,118220.0,118210.0,1.11135465]
[1753873379449,0.04592682,118220.0,118210.0,1.11135465]
[1753873379878,0.04592682,118220.0,118210.0,1.11348465]
[1753873380095,0.0187,118230.0,118220.0,0.35744902]
[1753873380302,0.0187,118230.0,118220.0,1.43714434]
[1753873380303,0.00502,118230.0,118220.0,1.43714434]
[1753873380550,0.02082422,118230.0,118220.0,1.22007434]
[1753873380889,0.00502,118230.0,118220.0,1.22007434]
[1753873381099,0.003,118230.0,118220.0,1.30007434]
[1753873381315,0.01879623,118230.0,118220.0,1.35518104]
[1753873381530,0.005,118230.0,118220.0,1.63288104]
[1753873381736,0.003,118230.0,118220.0,1.63288104]
[1753873381940,0.003,118230.0,118220.0,1.63388104]
[1753873382172,0.003,118230.0,118220.0,1.63488104]
[1753873382387,0.01878769,118230.0,118220.0,1.65008104]
[1753873382604,0.003,118230.0,118220.0,1.64908104]
[1753873383462,0.01878057,118230.0,118220.0,1.64908104]
[1753873383678,0.01878057,118230.0,118220.0,1.69908104]
[1753873384131,0.01878057,118230.0,118220.0,1.43698104]
[1753873384345,0.003,118230.0,118220.0,1.43898104]
[1753873384557,0.01877529,118230.0,118220.0,1.48998104]
[1753873386341,0.02665892,118230.0,118220.0,1.48998104]
[1753873387626,0.02665892,118230.0,118220.0,1.75208104]
[1753873387843,0.02665802,118230.0,118220.0,1.75208104]
[1753873388714,0.0181906,118230.0,118220.0,1.75208104]
[1753873389134,0.00972318,118230.0,118220.0,1.75208104]
[1753873389589,0.003,118250.0,118240.0,0.40744902]
[1753873389818,0.00895913,118250.0,118240.0,1.77923434]
[1753873390281,0.00895913,118250.0,118240.0,1.80503434]
[1753873390787,0.00895913,118250.0,118240.0,1.85503434]
[1753873391466,0.01095913,118250.0,118240.0,1.85503434]
[1753873391960,0.01095913,118250.0,118240.0,1.85603434]
[1753873393468,0.01095576,118250.0,118240.0,1.85603434]
[1753873394220,0.00504851,118250.0,118240.0,1.85603434]
[1753873397906,0.00504851,118250.0,118240.0,1.83953434]
[1753873398792,0.00504851,118250.0,118240.0,1.80309434]
[1753873401227,0.00504851,118250.0,118240.0,1.67225434]
[1753873401436,0.00504851,118250.0,118240.0,1.80309434]
[1753873410495,0.00504851,118250.0,118240.0,1.80209434]
[1753873411268,0.00504851,118250.0,118240.0,1.80409434]
[1753873411732,0.00304851,118250.0,118240.0,1.80209434]
[1753873411949,0.00304851,118250.0,118240.0,1.81009434]
[1753873412402,0.00304851,118250.0,118240.0,2.02717434]
[1753873412657,0.00304851,118250.0,118240.0,2.02917434]
[1753873413127,0.00304851,118250.0,118240.0,2.02417434]
[1753873414767,0.00304851,118250.0,118240.0,2.02817434]
[1753873417750,0.01854851,118250.0,118240.0,1.27803632]
[1753873418016,0.01854851,118250.0,118240.0,2.02817434]
[1753873418430,0.01854851,118250.0,118240.0,1.81817434]
[1753873418874,0.01854851,118250.0,118240.0,1.19887632]
[1753873419090,0.01854851,118250.0,118240.0,1.80817434]
[1753873419315,0.01854851,118250.0,118240.0,1.83817434]
[1753873419539,0.01854851,118250.0,118240.0,2.05817434]
[1753873423403,0.01854851,118250.0,118240.0,1.71817434]
[1753873423899,0.01854851,118250.0,118240.0,2.05721434]
[1753873425681,0.01854851,118250.0,118240.0,1.92637434]
[1753873425920,0.01854851,118250.0,118240.0,1.84717434]
[1753873426135,0.01854851,118250.0,118240.0,2.05717434]
[1753873426609,0.01854851,118250.0,118240.0,1.80717434]
[1753873426829,0.01854851,118250.0,118240.0,1.54717434]
[1753873427039,0.01854851,118250.0,118240.0,2.05717434]
[1753873429619,0.00304851,118250.0,118240.0,2.05717434]
[1753873431176,0.01834851,118250.0,118240.0,2.05717434]
[1753873433290,0.00304851,118250.0,118240.0,2.07327434]
[1753873433501,0.00304851,118250.0,118240.0,2.08927434]
[1753873433944,0.00304851,118250.0,118240.0,2.07327434]
[1753873435003,0.90616112,118280.0,118250.0,0.01744902]
[1753873435217,0.90664622,118280.0,118270.0,0.30964901]
[1753873435423,0.90664622,118280.0,118270.0,0.52492631]
[1753873435424,0.90868622,118280.0,118270.0,0.52492631]
[1753873436337,0.91068622,118280.0,118270.0,0.52492631]
[1753873436622,0.90868622,118280.0,118270.0,0.52492631]
[1753873436864,0.90868622,118280.0,118270.0,0.2152773]
[1753873437097,0.93202622,118280.0,118270.0,0.52492631]
[1753873437324,0.93202622,118280.0,118270.0,0.53354554]
[1753873438011,0.96352622,118280.0,118270.0,0.53354554]
[1753873439398,0.96352622,118280.0,118270.0,0.75362554]
[1753873440871,0.96352622,118280.0,118270.0,0.90767979]
[1753873441084,0.96352622,118280.0,118270.0,0.90867979]
[1753873445697,0.96121622,118280.0,118270.0,0.90863979]
[1753873447604,0.96121622,118280.0,118270.0,0.67678816]
[1753873448359,0.96121622,118280.0,118270.0,0.90863979]
[1753873451131,0.94218622,118280.0,118270.0,0.93721979]
[1753873454011,0.94014622,118280.0,118270.0,0.93721979]
[1753873454145,0.94014622,118280.0,118270.0,0.95299979]
[1753873456897,0.94218622,118280.0,118270.0,0.95299979]
[1753873461733,0.92394622,118280.0,118270.0,0.95299979]
[1753873463809,0.92394622,118280.0,118270.0,0.97044881]
[1753873466659,0.92598622,118280.0,118270.0,0.97044881]
[1753873466885,0.94098622,118280.0,118270.0,0.97044881]
[1753873469824,0.94098622,118280.0,118270.0,0.96511881]
[1753873471079,0.94098622,118280.0,118270.0,0.73326718]
[1753873471284,0.94098622,118280.0,118270.0,0.73631718]
[1753873471489,0.94098622,118280.0,118270.0,0.96816881]
[1753873472334,0.94098622,118280.0,118270.0,0.97020881]
[1753873472604,0.92394622,118280.0,118270.0,0.97020881]
[1753873474452,0.90864622,118280.0,118270.0,1.51020881]
[1753873474669,0.90864622,118280.0,118270.0,1.32670881]
[1753873474916,0.90864622,118280.0,118270.0,1.55290881]
[1753873475668,0.90864622,118280.0,118270.0,0.86300555]
[1753873475884,0.90864622,118280.0,118270.0,1.31020881]
[1753873477887,0.90864622,118280.0,118270.0,1.17944881]
[1753873478110,0.94132622,118280.0,118270.0,0.91925718]
[1753873478321,0.96273622,118280.0,118270.0,0.10987653]
[1753873478530,0.96273622,118280.0,118270.0,0.47232816]
[1753873478962,0.96273622,118280.0,118270.0,0.24047653]
[1753873479378,0.96273622,118280.0,118270.0,0.54970961]
[1753873479583,0.96273622,118280.0,118270.0,0.56715863]
[1753873480453,0.92434622,118280.0,118270.0,0.81568863]
[1753873480898,0.94242622,118280.0,118270.0,0.78723863]
[1753873481113,0.96145622,118280.0,118270.0,0.78723863]
[1753873481799,0.94242622,118280.0,118270.0,0.78723863]
[1753873482016,0.94242622,118280.0,118270.0,0.81059863]
[1753873482455,0.94242622,118280.0,118270.0,0.50136555]
[1753873482683,0.94242622,118280.0,118270.0,0.81059863]
[1753873483128,0.94242622,118280.0,118270.0,0.81364863]
[1753873483701,0.94242622,118280.0,118270.0,0.81568863]
[1753873483904,0.92632622,118280.0,118270.0,0.81568863]
[1753873484355,0.92632622,118280.0,118270.0,0.50645555]
[1753873484721,0.92632622,118280.0,118270.0,0.81568863]
[1753873485353,0.94172622,118280.0,118270.0,0.81059863]
[1753873485981,0.94172622,118280.0,118270.0,0.50136555]
[1753873486189,0.94172622,118280.0,118270.0,0.81059863]
[1753873488407,0.92632622,118280.0,118270.0,0.81560863]
[1753873489069,0.92434622,118280.0,118270.0,0.81560863]
[1753873490258,0.90864622,118280.0,118270.0,0.81560863]
[1753873490700,0.90864622,118280.0,118270.0,0.50637555]
[1753873490913,0.90864622,118280.0,118270.0,0.84630863]
[1753873491340,0.90864622,118280.0,118270.0,0.83080863]
[1753873492031,0.90864622,118280.0,118270.0,0.83004863]
[1753873493072,0.90864622,118280.0,118270.0,0.81484863]
[1753873495935,0.90864622,118280.0,118270.0,0.83084863]
[1753873496137,0.90864622,118280.0,118270.0,0.81484863]
[1753873498342,0.92434622,118280.0,118270.0,0.81484863]
[1753873500450,0.90864622,118280.0,118270.0,0.81484863]
[1753873504328,0.92631622,118280.0,118270.0,0.81484863]
[1753873504541,0.94171622,118280.0,118270.0,0.80975863]
[1753873504747,0.96074622,118280.0,118270.0,0.78639863]
[1753873507116,0.94171622,118280.0,118270.0,0.80968863]
[1753873507335,0.94171622,118280.0,118270.0,0.50045555]
[1753873507558,0.94171622,118280.0,118270.0,0.80968863]
[1753873507731,0.96074622,118280.0,118270.0,0.78639863]
[1753873508216,0.94171622,118280.0,118270.0,0.78639863]
[1753873508726,0.94171622,118280.0,118270.0,0.80968863]
[1753873509957,0.94171622,118280.0,118270.0,0.65587863]
[1753873510201,0.96074622,118280.0,118270.0,0.78635863]
[1753873511400,0.96312622,118280.0,118270.0,0.78635863]
[1753873511798,0.96074622,118280.0,118270.0,0.78635863]
[1753873511997,0.96312622,118280.0,118270.0,0.47712555]
[1753873512236,0.96312622,118280.0,118270.0,0.78635863]
[1753873512596,0.96312622,118280.0,118270.0,0.7777394]
[1753873514651,0.96074622,118280.0,118270.0,0.7777394]
[1753873518185,0.96074622,118280.0,118270.0,0.6472594]
[1753873518407,0.94171622,118280.0,118270.0,0.8009894]
[1753873518826,0.92434622,118280.0,118270.0,0.8062294]
[1753873519029,0.90864622,118280.0,118270.0,0.8062294]
[1753873519443,0.90864622,118280.0,118270.0,0.8227294]
[1753873520699,0.90864622,118280.0,118270.0,0.8386294]
[1753873520902,0.90864622,118280.0,118270.0,0.99304992]
[1753873521365,0.90864622,118280.0,118270.0,0.96064992]
[1753873521567,0.92394622,118280.0,118270.0,0.72882312]
[1753873521925,0.92394622,118280.0,118270.0,0.96064992]